bitfinex-derivatives/quotes_SOLF0:USTF0_20260115
["timestamp","ask_amount","ask_price","bid_price","bid_amount"]
[1768514762233,3.45610425,142.36,142.29,6.3266]
[1768514762742,3.45610425,142.36,142.27,6.3271]
[1768514762743,3.31129591,142.35,142.27,6.3271]
[1768514763944,3.31129591,142.35,142.28,6.327]
[1768514764344,3.31129591,142.34,142.26,6.3276]
[1768514765956,9.63579591,142.34,142.26,6.3276]
[1768514767352,3.31129591,142.34,142.26,6.3276]
[1768514769757,3.31129591,142.33,142.26,6.3276]
[1768514772254,3.31129591,142.32,142.22,98.4625]
[1768514773357,3.31129591,142.31,142.2,98.4754]
[1768514774758,9.63709591,142.31,142.23,6.3293]
[1768514775160,3.31129591,142.3,142.23,6.3293]
[1768514776364,3.31129591,142.32,142.21,98.4688]
[1768514777668,3.31129591,142.34,142.23,98.4556]
[1768514778768,3.31129591,142.34,142.27,6.3275]
[1768514787669,3.31129591,142.34,142.28,6.327]
[1768514807190,3.03722926,142.36,142.28,6.327]
[1768514807387,2.21351848,142.34,142.28,6.327]
[1768514807695,2.21351848,142.34,142.29,6.3265]
[1768514808092,3.03722926,142.36,142.29,6.3265]
[1768514808294,2.21351848,142.35,142.29,6.3265]
[1768514808795,3.03722926,142.36,142.3,6.326]
[1768514810194,2.21351848,142.37,142.32,6.3253]
[1768514810392,3.03722926,142.38,142.32,6.3253]
[1768514814196,3.2555407,142.41,142.33,6.3247]
[1768514814498,5.46905918,142.4,142.33,6.3247]
[1768514814697,3.2555407,142.4,142.33,6.3247]
[1768514814892,5.46905918,142.4,142.33,6.3247]
[1768514818994,3.2555407,142.4,142.34,6.3243]
[1768514819202,5.46905918,142.4,142.34,6.3243]
[1768514821604,3.2555407,142.4,142.34,6.3243]
[1768514821799,9.5756407,142.44,142.33,2.21351848]
[1768514822004,2.21351848,142.42,142.32,100.60481848]
[1768514822204,3.2555407,142.41,142.31,98.3961]
[1768514822502,5.46905918,142.4,142.34,6.3244]
[1768514823204,5.46905918,142.4,142.31,98.3961]
[1768514823205,3.2555407,142.39,142.32,6.325]
[1768514823505,2.21351848,142.38,142.28,2.21351848]
[1768514823697,5.46905918,142.38,142.28,2.21351848]
[1768514824797,5.46905918,142.38,142.31,6.3257]
[1768514825402,98.3152,142.44,142.28,2.21351848]
[1768514825403,2.21351848,142.4,142.3,2.21351848]
[1768514825809,3.2555407,142.4,142.3,2.21351848]
[1768514826501,5.46905918,142.4,142.31,6.3253]
[1768514826699,3.2555407,142.39,142.31,6.3253]
[1768514827005,3.2555407,142.39,142.32,6.3253]
[1768514839411,3.2555407,142.38,142.28,2.21351848]
[1768514839606,3.2555407,142.37,142.28,2.21351848]
[1768514840208,3.2555407,142.37,142.27,2.21351848]
[1768514840517,3.2555407,142.37,142.26,98.4344]
[1768514840719,3.2555407,142.37,142.26,100.64791848]
[1768514841220,3.24561011,142.35,142.28,6.3267]
[1768514841512,3.24561011,142.35,142.26,2.21351848]
[1768514841706,3.24561011,142.35,142.24,2.21351848]
[1768514842117,2.21351848,142.34,142.24,2.21351848]
[1768514842420,3.24561011,142.33,142.24,2.21351848]
[1768514842905,3.24561011,142.33,142.27,6.3275]
[1768514853238,3.24561011,142.33,142.23,113.32751848]
[1768514853239,5.55964972,142.36,142.25,100.65131848]
[1768514854036,3.34613124,142.35,142.28,6.3271]
[1768514859243,2.21351848,142.36,142.29,6.3266]
[1768514859841,5.55964972,142.36,142.29,6.3266]
[1768514862537,3.34613124,142.35,142.27,6.3274]
[1768514863440,3.34613124,142.35,142.25,100.65331848]
[1768514864343,3.34613124,142.35,142.29,6.3266]
[1768514890661,3.34613124,142.35,142.25,98.4398]
[1768514890867,3.11746143,142.37,142.3,6.326]
[1768514903575,3.11746143,142.37,142.31,6.3257]
[1768514904764,3.33028885,142.39,142.29,98.4141]
[1768514905578,3.33028885,142.39,142.33,6.3248]
[1768514909281,6.81286046,142.41,142.33,6.3248]
[1768514909580,3.35581382,142.4,142.33,6.3248]
[1768514918789,3.35581382,142.39,142.31,6.3253]
[1768514919085,3.35581382,142.39,142.28,98.4184]
[1768514920790,3.35581382,142.39,142.32,6.3253]
[1768514925997,3.35581382,142.38,142.3,6.3258]
[1768514926791,3.35581382,142.38,142.31,6.3256]
[1768514929296,5.56798974,142.38,142.31,6.3256]
[1768514931196,5.56798974,142.38,142.32,6.3253]
[1768514933889,3.35581382,142.38,142.32,6.3253]
[1768514937303,3.35581382,142.38,142.33,6.3248]
[1768514945908,3.35581382,142.38,142.31,6.3254]
[1768514946108,3.35581382,142.38,142.28,100.63057592]
[1768514947818,3.35581382,142.38,142.32,6.325]
[1768514960318,5.56798974,142.38,142.32,6.325]
[1768514964226,3.35581382,142.38,142.32,6.325]
[1768514971329,3.25907792,142.4,142.29,98.4151]
[1768514971633,5.49140584,142.39,142.29,98.4151]
[1768514971933,3.25907792,142.4,142.29,98.4151]
[1768514972932,5.47125384,142.4,142.33,6.3248]
[1768514974334,3.25907792,142.4,142.34,6.3244]
[1768514987447,3.25907792,142.45,142.32,98.3943]
[1768514987747,3.25907792,142.41,142.31,100.61177592]
[1768514988946,3.25907792,142.41,142.34,6.3241]
[1768515009054,3.25907792,142.41,142.33,6.3248]
[1768515009258,3.45463866,142.4,142.28,98.4184]
[1768515009458,3.24269075,142.39,142.28,98.4184]
[1768515010758,3.24269075,142.39,142.31,6.3254]
[1768515021561,3.24269075,142.39,142.32,6.3253]
[1768515028070,3.24269075,142.39,142.33,6.3248]
[1768515034685,3.2318564,142.41,142.32,98.3935]
[1768515035686,3.2318564,142.41,142.35,6.3238]
[1768515046995,3.2318564,142.41,142.34,6.3244]
[1768515048602,3.2318564,142.41,142.33,6.3248]
[1768515051202,3.05040933,142.39,142.33,6.3248]
[1768515051503,2.21193724,142.38,142.33,6.3248]
[1768515055611,5.26234657,142.38,142.28,98.4184]
[1768515056802,5.26234657,142.38,142.31,6.3257]
[1768515072112,3.05040933,142.38,142.31,6.3257]
[1768515073720,3.05040933,142.37,142.26,98.434]
[1768515074009,3.05040933,142.37,142.27,2.21193724]
[1768515074010,5.26234657,142.37,142.27,2.21193724]
[1768515074202,3.05040933,142.36,142.27,2.21193724]
[1768515074805,3.05040933,142.36,142.3,6.3262]
[1768515081414,3.05040933,142.36,142.24,98.4483]
[1768515081617,3.05040933,142.36,142.24,100.66023724]
[1768515081816,2.21193724,142.35,142.24,100.66023724]
[1768515082012,3.14450221,142.34,142.27,6.3275]
[1768515090422,3.14450221,142.34,142.26,6.328]
[1768515090721,3.20548723,142.32,142.26,6.328]
[1768515094422,3.20548723,142.32,142.24,6.3284]
[1768515094722,3.20548723,142.32,142.22,100.67143724]
[1768515095920,3.20548723,142.32,142.25,6.3283]
[1768515099527,3.20548723,142.32,142.26,6.328]
[1768515105628,3.20548723,142.3,142.24,6.3285]
[1768515106326,2.21193724,142.29,142.22,6.3295]
[1768515106627,2.21193724,142.29,142.19,24.52470604]
[1768515107627,2.21193724,142.29,142.19,123.00540604]
[1768515108823,2.21193724,142.29,142.23,6.3292]
[1768515109925,5.41742447,142.29,142.23,6.3292]
[1768515110129,3.20548723,142.28,142.19,99.7034688]
[1768515111324,3.20548723,142.28,142.19,1.2227688]
[1768515111529,3.20548723,142.28,142.21,6.3302]
[1768515112631,5.50454199,142.27,142.21,6.3302]
[1768515113425,3.29260475,142.27,142.21,6.3302]
[1768515118137,3.29260475,142.29,142.21,6.3302]
[1768515126744,3.29260475,142.29,142.22,6.3296]
[1768515141856,3.29260475,142.29,142.23,6.3291]
[1768515158075,3.29260475,142.29,142.21,6.33]
[1768515167686,3.29260475,142.29,142.22,6.3297]
[1768515175284,5.50763649,142.29,142.22,6.3297]
[1768515175787,3.13801971,142.28,142.22,6.3297]
[1768515175987,3.13801971,142.28,142.2,6.3302]
[1768515176188,5.35305145,142.27,142.2,6.3302]
[1768515176392,3.13801971,142.26,142.2,6.3302]
[1768515179897,3.13801971,142.26,142.18,6.3311]
[1768515180099,3.13801971,142.26,142.16,98.503]
[1768515180292,3.13801971,142.25,142.16,98.503]
[1768515180492,3.13801971,142.25,142.15,100.72503174]
[1768515180793,3.13801971,142.25,142.14,100.73063174]
[1768515181195,3.13801971,142.25,142.16,6.332]
[1768515181405,3.13801971,142.23,142.16,6.332]
[1768515181598,3.13801971,142.21,142.11,100.74793174]
[1768515181800,3.13801971,142.21,142.11,122.03355555]
[1768515182190,98.4294,142.27,142.08,98.5591]
[1768515182191,3.13801971,142.19,142.08,115.93478118]
[1768515182494,3.13801971,142.17,142.05,98.5794]
[1768515182701,3.13801971,142.15,142.07,6.3362]
[1768515183405,3.13801971,142.15,142.05,6.337]
[1768515183701,3.13801971,142.15,142.04,100.80273174]
[1768515183888,3.13801971,142.15,142.04,23.19009439]
[1768515184090,3.13801971,142.15,142.06,6.3368]
[1768515184295,3.13801971,142.13,142.06,6.3368]
[1768515185106,3.13801971,142.16,142.06,6.3368]
[1768515185303,5.35305145,142.11,142.04,6.3375]
[1768515185807,5.35305145,142.11,142.01,100.82163174]
[1768515186103,5.35305145,142.11,142.03,6.338]
[1768515187902,3.13801971,142.1,142.03,6.338]
[1768515188101,3.13801971,142.1,142.01,8.55393174]
[1768515188304,3.13801971,142.1,142.01,6.3389]
[1768515188808,3.13801971,142.08,141.99,6.3399]
[1768515189303,3.13801971,142.08,142.0,6.3394]
[1768515189502,3.13801971,142.08,141.99,98.6221]
[1768515189808,3.13801971,142.08,142.0,2.21503174]
[1768515190103,3.13801971,142.1,142.0,2.21503174]
[1768515191804,3.13801971,142.08,141.98,2.21503174]
[1768515193007,3.13801971,142.08,141.98,8.55523174]
[1768515193713,3.13801971,142.08,141.99,6.3398]
[1768515197313,3.13801971,142.06,141.97,6.3406]
[1768515197513,3.13801971,142.06,141.97,8.55563174]
[1768515197814,3.13801971,142.06,141.97,6.3406]
[1768515198513,3.13801971,142.06,141.98,6.3403]
[1768515202513,3.13801971,142.06,141.96,6.3411]
[1768515202711,3.13801971,142.06,141.94,98.6575]
[1768515202712,3.09262508,142.04,141.94,100.87253174]
[1768515204018,3.09262508,142.04,141.97,6.3408]
[1768515208616,3.13457847,142.02,141.94,6.3418]
[1768515208809,3.13457847,142.02,141.93,2.21503174]
[1768515209518,3.13457847,142.02,141.92,98.665]
[1768515209718,3.13457847,142.02,141.92,100.88003174]
[1768515209916,3.13457847,142.02,141.95,6.3417]
[1768515210220,3.13457847,142.02,141.91,98.6765]
[1768515210415,3.13457847,142.02,141.92,2.21503174]
[1768515211316,3.13457847,142.02,141.93,98.6626]
[1768515211521,3.13457847,142.02,141.92,98.6685]
[1768515212310,3.13457847,142.02,141.95,6.3417]
[1768515213513,3.13457847,142.02,141.96,6.3413]
[1768515213711,3.13457847,142.05,141.96,2.21503174]
[1768515214110,3.13457847,142.05,141.99,6.3399]
[1768515221122,3.13457847,142.05,142.0,6.3393]
[1768515221321,2.21503174,142.12,142.03,2.21503174]
[1768515221725,6.3347,142.11,142.03,2.21503174]
[1768515222324,6.3347,142.11,142.03,8.55323174]
[1768515222524,6.3347,142.11,142.03,2.21503174]
[1768515223123,6.3347,142.11,142.04,6.3378]
[1768515223326,3.08974457,142.1,142.03,2.21503174]
[1768515223825,3.08974457,142.1,142.05,2.21503174]
[1768515225125,3.08974457,142.1,142.08,6.336]
[1768515225325,3.08974446,142.12,142.08,8.55103174]
[1768515225524,3.08974446,142.12,142.08,2.21503174]
[1768515225927,3.08974446,142.12,142.09,6.3355]
[1768515226440,3.08974446,142.12,142.09,8.55053174]
[1768515227230,3.08974446,142.12,142.1,6.335]
[1768515227431,3.08974435,142.15,142.08,3.06716892]
[1768515228233,3.08974435,142.15,142.11,6.3346]
[1768515228737,3.08974435,142.15,142.12,6.3339]
[1768515229036,3.08974429,142.17,142.1,3.06716892]
[1768515229237,3.08974429,142.17,142.1,101.60956892]
[1768515229438,3.08974429,142.17,142.14,6.3333]
[1768515236637,3.08391213,142.21,142.14,6.3333]
[1768515238238,3.08391213,142.21,142.15,6.3328]
[1768515238841,3.08391204,142.2,142.15,6.3328]
[1768515241248,3.08391204,142.2,142.12,3.35655196]
[1768515241843,3.08391204,142.2,142.13,6.3334]
[1768515242345,3.0839119,142.17,142.11,6.3344]
[1768515243342,3.0839119,142.17,142.12,6.3342]
[1768515250954,3.0839119,142.17,142.13,6.3336]
[1768515253253,3.08391139,142.19,142.13,6.3336]
[1768515257662,3.08391139,142.19,142.14,6.3333]
[1768515259563,3.08391116,142.2,142.15,6.3329]
[1768515263058,9.41303421,142.23,142.16,9.53420254]
[1768515263257,5.45752655,142.22,142.16,9.53420254]
[1768515263559,3.08333417,142.22,142.16,9.53420254]
[1768515264562,5.46299412,142.21,142.16,9.53420254]
[1768515264756,3.08333417,142.22,142.16,9.53420254]
[1768515264957,5.46299412,142.21,142.16,9.53420254]
[1768515265157,3.08333417,142.22,142.16,9.53420254]
[1768515265353,5.46319288,142.21,142.16,9.53420254]
[1768515265558,3.08333417,142.22,142.16,9.53420254]
[1768515265756,5.46649888,142.21,142.16,9.53420254]
[1768515265955,3.08333417,142.22,142.16,9.53420254]
[1768515266157,5.46650112,142.21,142.16,9.53420254]
[1768515266357,3.08333417,142.22,142.16,9.53420254]
[1768515266560,5.4702183,142.21,142.16,9.53420254]
[1768515266860,3.08333417,142.22,142.16,9.53420254]
[1768515267160,5.4702183,142.21,142.16,9.53420254]
[1768515267455,5.47468682,142.2,142.16,9.53420254]
[1768515267661,3.08333417,142.22,142.16,9.53420254]
[1768515267856,5.47468682,142.21,142.16,9.53420254]
[1768515268163,5.47468682,142.2,142.16,9.53420254]
[1768515268463,3.08333417,142.22,142.16,9.53420254]
[1768515268662,5.48070052,142.21,142.16,9.53420254]
[1768515268863,5.48070052,142.2,142.16,9.53420254]
[1768515269062,3.08333417,142.22,142.16,9.53420254]
[1768515269260,5.4807786,142.21,142.16,9.53420254]
[1768515269461,5.4807786,142.2,142.16,9.53420254]
[1768515269663,5.4807786,142.19,142.16,9.53420254]
[1768515269861,3.08333417,142.22,142.16,9.53420254]
[1768515270062,5.48490975,142.21,142.16,9.53420254]
[1768515270264,5.48490975,142.2,142.16,9.53420254]
[1768515270464,5.48490975,142.19,142.16,9.53420254]
[1768515270765,3.08333417,142.22,142.17,6.332]
[1768515271066,5.48675777,142.21,142.17,6.332]
[1768515271263,3.08333417,142.22,142.17,6.332]
[1768515271467,5.48734945,142.21,142.17,6.332]
[1768515271664,5.48734945,142.2,142.17,6.332]
[1768515271863,3.08333417,142.22,142.17,6.332]
[1768515272065,5.48431902,142.21,142.17,6.332]
[1768515272264,3.08333417,142.22,142.17,6.332]
[1768515272568,5.48512824,142.21,142.17,6.332]
[1768515272763,5.48512824,142.2,142.17,6.332]
[1768515272963,3.08333417,142.22,142.17,6.332]
[1768515273165,5.48512824,142.21,142.17,6.332]
[1768515273361,3.08333417,142.22,142.17,6.332]
[1768515273362,5.48512824,142.2,142.17,6.332]
[1768515273562,3.08333417,142.22,142.17,6.332]
[1768515273763,5.48562143,142.21,142.17,6.332]
[1768515273962,5.48562143,142.2,142.17,6.332]
[1768515274165,3.08333417,142.22,142.17,6.332]
[1768515274462,5.48513896,142.21,142.17,6.332]
[1768515274665,5.48513896,142.2,142.17,6.332]
[1768515274858,3.08333417,142.22,142.17,6.332]
[1768515275065,5.48501941,142.21,142.17,6.332]
[1768515275256,5.48501941,142.2,142.17,6.332]
[1768515275458,3.08333417,142.22,142.17,6.332]
[1768515275660,5.48446771,142.21,142.17,6.332]
[1768515275857,5.48446771,142.2,142.17,6.332]
[1768515276059,3.08333417,142.22,142.17,6.332]
[1768515276261,5.48411371,142.21,142.17,6.332]
[1768515276461,5.48411371,142.2,142.17,6.332]
[1768515276669,3.08333417,142.22,142.17,6.332]
[1768515276870,5.48397942,142.21,142.17,6.332]
[1768515277169,3.08333417,142.22,142.17,6.332]
[1768515277368,5.48366556,142.21,142.17,6.332]
[1768515277569,3.08333417,142.22,142.17,6.332]
[1768515277766,5.48351738,142.21,142.17,6.332]
[1768515277962,3.08333417,142.22,142.17,6.332]
[1768515278266,5.48351738,142.21,142.17,6.332]
[1768515278466,3.08333417,142.22,142.17,6.332]
[1768515278671,5.48308438,142.21,142.17,6.332]
[1768515278873,3.08333417,142.22,142.17,6.332]
[1768515279167,5.48311957,142.21,142.17,6.332]
[1768515279469,3.08333417,142.22,142.17,6.332]
[1768515279672,5.48270596,142.21,142.17,6.332]
[1768515279867,3.08333417,142.22,142.17,6.332]
[1768515280168,5.4827048,142.21,142.17,6.332]
[1768515280370,3.08333417,142.22,142.17,6.332]
[1768515280569,5.48231144,142.21,142.17,6.332]
[1768515280867,3.08333417,142.22,142.18,6.3315]
[1768515281071,5.48206736,142.21,142.18,6.3315]
[1768515281269,3.08333417,142.22,142.18,6.3315]
[1768515281866,6.51422279,142.24,142.18,6.3315]
[1768515282062,6.51422279,142.24,142.19,6.331]
[1768515282063,5.4809629,142.23,142.19,6.331]
[1768515282262,6.51422279,142.24,142.19,9.56747437]
[1768515282459,5.47969694,142.23,142.19,9.56747437]
[1768515282660,6.51422279,142.24,142.19,9.56747437]
[1768515282864,5.47969694,142.23,142.19,9.56747437]
[1768515283063,6.51422279,142.24,142.19,9.56747437]
[1768515283265,5.4787412,142.23,142.19,9.56747437]
[1768515283464,3.04830792,142.24,142.19,9.56747437]
[1768515283666,5.47853543,142.23,142.19,9.56747437]
[1768515283965,3.04830792,142.24,142.19,9.56747437]
[1768515284164,5.47853766,142.23,142.19,9.56747437]
[1768515284364,3.04830792,142.24,142.19,9.56747437]
[1768515284669,5.47750474,142.23,142.19,9.56747437]
[1768515284973,3.04830792,142.24,142.19,9.56747437]
[1768515285168,5.47750698,142.23,142.19,9.56747437]
[1768515285375,3.04830792,142.24,142.19,9.56747437]
[1768515285576,5.47680706,142.23,142.19,9.56747437]
[1768515285775,3.04830792,142.24,142.19,9.56747437]
[1768515285974,5.47680706,142.23,142.19,9.56747437]
[1768515286176,3.04830792,142.24,142.19,9.56747437]
[1768515286487,5.47597015,142.23,142.19,9.56747437]
[1768515286687,3.04830792,142.24,142.19,9.56747437]
[1768515286889,5.47597015,142.23,142.19,9.56747437]
[1768515287184,3.04830792,142.24,142.2,6.3305]
[1768515287383,9.37630792,142.26,142.2,6.3305]
[1768515287591,5.47510936,142.25,142.2,6.3305]
[1768515287791,5.47510936,142.24,142.2,6.3305]
[1768515287986,9.37630792,142.26,142.2,6.3305]
[1768515288293,5.47510936,142.25,142.2,6.3305]
[1768515288488,5.47510936,142.24,142.2,6.3305]
[1768515288685,9.37630792,142.26,142.2,6.3305]
[1768515288991,5.47451323,142.25,142.21,9.56647437]
[1768515289189,3.04830792,142.26,142.21,9.56647437]
[1768515297299,5.26430907,142.26,142.21,9.56647437]
[1768515300701,2.21600115,142.25,142.21,9.56647437]
[1768515300902,5.29706785,142.25,142.19,9.62813644]
[1768515301093,5.29706785,142.25,142.2,3.29743644]
[1768515301894,2.21600115,142.25,142.2,3.29743644]
[1768515303802,2.21600115,142.25,142.21,3.29743644]
[1768515304002,3.0810667,142.27,142.21,3.29743644]
[1768515304203,2.21600115,142.26,142.21,3.29743644]
[1768515305801,2.21600115,142.26,142.21,9.62753644]
[1768515311509,2.21600115,142.26,142.21,3.29743644]
[1768515314008,3.0810667,142.25,142.19,3.29743644]
[1768515314210,2.21600115,142.24,142.19,3.29743644]
[1768515315822,2.21600115,142.24,142.19,9.62853644]
[1768515316107,2.21600115,142.24,142.2,3.29743644]
[1768515322023,6.3286,142.25,142.2,3.29743644]
[1768515322718,8.54460115,142.25,142.2,3.29743644]
[1768515324127,6.3289,142.24,142.2,3.29743644]
[1768515324324,5.47771704,142.23,142.18,3.17481403]
[1768515324514,3.06679742,142.24,142.18,3.17481403]
[1768515324720,10.76047192,142.23,142.18,3.17481403]
[1768515324915,6.3298,142.22,142.14,6.333]
[1768515325122,9.39659742,142.22,142.16,3.17481403]
[1768515325822,6.3302,142.21,142.16,3.17481403]
[1768515326222,5.31336843,142.21,142.09,100.76760115]
[1768515326527,6.3316,142.18,142.09,2.21600115]
[1768515326928,7.6964836,142.17,142.06,2.21600115]
[1768515327122,2.21600115,142.17,142.06,2.21600115]
[1768515327928,6.3325,142.16,142.08,6.3356]
[1768515328228,6.3325,142.16,142.09,3.2542618]
[1768515331733,8.54890115,142.15,142.09,3.2542618]
[1768515334034,6.3335,142.14,142.09,3.2542618]
[1768515335233,5.31336843,142.15,142.09,3.2542618]
[1768515340738,8.54880115,142.16,142.09,3.2542618]
[1768515340932,2.21600115,142.16,142.09,3.2542618]
[1768515341135,2.21600115,142.19,142.09,3.2542618]
[1768515341335,2.21600115,142.19,142.1,3.2542618]
[1768515342831,8.54750115,142.19,142.13,3.2542618]
[1768515347136,3.09736728,142.2,142.13,3.2542618]
[1768515347339,2.21600115,142.21,142.14,3.2542618]
[1768515348943,2.21600115,142.21,142.15,9.5869618]
[1768515350250,11.64366843,142.21,142.15,3.2542618]
[1768515350435,2.21600115,142.19,142.15,3.2542618]
[1768515350947,2.21600115,142.17,142.12,3.06955525]
[1768515357544,6.3317,142.18,142.12,3.06955525]
[1768515358254,9.36416805,142.18,142.12,3.06955525]
[1768515358453,9.36446805,142.17,142.08,3.06955525]
[1768515359848,9.36446805,142.17,142.11,3.06955525]
[1768515360651,3.03246805,142.15,142.09,3.06955525]
[1768515362860,9.36536805,142.15,142.09,3.06955525]
[1768515364454,3.03246805,142.14,142.07,3.06955525]
[1768515364655,6.49917459,142.13,142.07,3.06955525]
[1768515365860,6.3342,142.12,142.07,3.06955525]
[1768515366552,3.03246805,142.13,142.07,3.06955525]
[1768515367058,9.36626805,142.13,142.07,3.06955525]
[1768515367951,12.83297459,142.13,142.07,3.06955525]
[1768515375148,3.03246805,142.14,142.07,3.06955525]
[1768515376762,6.3338,142.13,142.07,3.06955525]
[1768515377062,6.3338,142.13,142.07,9.40595525]
[1768515377561,9.79990654,142.15,142.09,3.06955525]
[1768515377766,3.03246805,142.16,142.09,3.06955525]
[1768515378965,9.36496805,142.16,142.09,9.40505525]
[1768515380864,9.36496805,142.16,142.1,3.06955525]
[1768515382960,3.03246805,142.16,142.1,3.06955525]
[1768515383464,3.03246805,142.16,142.1,9.40465525]
[1768515392978,3.03246805,142.16,142.1,3.06955525]
[1768515393173,3.07471303,142.15,142.06,3.16896248]
[1768515394769,9.40761303,142.15,142.08,9.50476248]
[1768515395482,12.87431957,142.15,142.08,9.50476248]
[1768515396283,3.07471303,142.14,142.08,9.50476248]
[1768515396582,3.07471303,142.13,142.08,3.16896248]
[1768515402786,3.07471303,142.13,142.08,9.50496248]
[1768515417599,6.3333,142.14,142.08,9.50496248]
[1768515418802,13.11123918,142.15,142.08,9.50496248]
[1768515419006,5.50533014,142.14,142.08,9.50496248]
[1768515419205,13.11123918,142.15,142.08,9.50496248]
[1768515419503,2.22036019,142.12,142.08,9.50496248]
[1768515420601,2.22036019,142.12,142.08,3.16896248]
[1768515420799,2.22036019,142.1,142.04,98.5841]
[1768515420998,2.22036019,142.1,142.02,111.2758]
[1768515421201,2.22036019,142.08,142.03,6.3378]
[1768515421394,2.22036019,142.08,141.99,98.621]
[1768515422809,2.22036019,142.08,142.03,3.21942781]
[1768515424301,3.31163264,142.13,142.04,3.21942781]
[1768515424505,2.22036019,142.12,142.04,3.21942781]
[1768515424708,2.22036019,142.12,142.08,3.21942781]
[1768515425005,2.22036019,142.13,142.08,3.21942781]
[1768515425708,11.86489283,142.15,142.08,3.21942781]
[1768515425903,5.52662851,142.14,142.08,3.21942781]
[1768515426100,5.52662851,142.13,142.08,3.21942781]
[1768515426295,11.86489283,142.15,142.08,3.21942781]
[1768515426500,5.52667913,142.14,142.08,3.21942781]
[1768515426700,5.52667913,142.13,142.08,3.21942781]
[1768515426896,11.86489283,142.15,142.08,3.21942781]
[1768515427100,5.52667913,142.14,142.08,3.21942781]
[1768515427309,11.86439283,142.17,142.1,3.21942781]
[1768515427509,2.22036019,142.13,142.05,3.21942781]
[1768515427704,5.53199283,142.13,142.05,3.21942781]
[1768515428200,3.31163264,142.13,142.05,3.21942781]
[1768515428905,3.31163264,142.13,142.07,9.55552781]
[1768515437915,3.31163264,142.13,142.08,3.21942781]
[1768515438111,5.53199283,142.15,142.09,3.21942781]
[1768515438418,8.8419761,142.14,142.09,3.21942781]
[1768515438714,3.31163264,142.14,142.09,3.21942781]
[1768515443817,5.53199283,142.14,142.09,3.21942781]
[1768515447018,5.53199283,142.14,142.09,9.55492781]
[1768515450327,5.53199283,142.14,142.09,3.21942781]
[1768515457436,3.31163264,142.14,142.09,3.21942781]
[1768515459135,3.31163264,142.14,142.09,9.55492781]
[1768515464041,9.41788229,142.16,142.1,9.60508802]
[1768515464243,5.53110036,142.15,142.1,9.60508802]
[1768515464443,3.08538229,142.16,142.11,3.27018802]
[1768515464735,5.5310329,142.15,142.11,9.60478802]
[1768515464943,3.08538229,142.16,142.11,9.60478802]
[1768515465136,5.53078868,142.15,142.11,3.27018802]
[1768515465337,3.08538229,142.18,142.11,3.27018802]
[1768515465545,5.53045264,142.17,142.11,3.27018802]
[1768515465742,5.53045264,142.16,142.11,3.27018802]
[1768515465945,3.08538229,142.18,142.11,3.27018802]
[1768515466137,5.53045038,142.17,142.12,3.27018802]
[1768515466337,3.08538229,142.18,142.12,3.27018802]
[1768515466533,5.53086551,142.17,142.12,3.27018802]
[1768515466739,3.08538229,142.18,142.12,3.27018802]
[1768515466934,5.53071878,142.17,142.12,3.27018802]
[1768515467137,3.08538229,142.18,142.12,3.27018802]
[1768515467338,5.53083834,142.17,142.12,3.27018802]
[1768515467540,3.08538229,142.18,142.12,3.27018802]
[1768515467742,5.53083834,142.17,142.12,3.27018802]
[1768515468038,3.08538229,142.18,142.12,3.27018802]
[1768515468243,5.53058956,142.17,142.12,3.27018802]
[1768515468547,3.08538229,142.18,142.12,3.27018802]
[1768515468738,5.53143857,142.17,142.12,3.27018802]
[1768515468938,3.08538229,142.18,142.12,3.27018802]
[1768515469139,5.53143857,142.17,142.12,3.27018802]
[1768515469437,3.08538229,142.18,142.12,3.27018802]
[1768515469638,5.53265516,142.17,142.12,3.27018802]
[1768515469836,3.08538229,142.18,142.12,3.27018802]
[1768515470036,5.53265516,142.17,142.12,3.27018802]
[1768515470232,3.08538229,142.18,142.12,3.27018802]
[1768515470437,5.53159814,142.17,142.12,3.27018802]
[1768515470638,3.08538229,142.18,142.12,3.27018802]
[1768515470840,5.53160161,142.17,142.12,3.27018802]
[1768515471139,3.08538229,142.18,142.12,3.27018802]
[1768515471332,5.53073368,142.17,142.12,3.27018802]
[1768515471546,3.08538229,142.18,142.12,3.27018802]
[1768515471740,5.53073368,142.17,142.12,3.27018802]
[1768515471940,3.08538229,142.18,142.12,3.27018802]
[1768515472140,5.53073368,142.17,142.12,3.27018802]
[1768515472339,3.08538229,142.18,142.12,3.27018802]
[1768515472543,5.53001697,142.17,142.12,3.27018802]
[1768515472742,3.08538229,142.18,142.12,3.27018802]
[1768515473041,5.5300193,142.17,142.12,3.27018802]
[1768515473241,3.08538229,142.18,142.12,3.27018802]
[1768515475837,3.12771168,142.17,142.11,6.3346]
[1768515476038,3.12771168,142.16,142.11,6.3346]